bitfinex/quotes_ETHUSD_20250622
["timestamp","ask_amount","ask_price","bid_price","bid_amount"]
[1750592745394,20.81516946,2276.5,2276.4,4.39290107]
[1750592745895,20.81517205,2276.5,2276.4,4.39290107]
[1750592746095,20.81517223,2276.5,2276.4,4.39290107]
[1750592746296,20.81515193,2276.5,2276.4,4.39290107]
[1750592746833,10.8151515,2276.5,2276.4,4.39290107]
[1750592747208,10.81515222,2276.5,2276.4,4.39290107]
[1750592748219,10.81516859,2276.5,2276.4,4.39290107]
[1750592748596,10.81516822,2276.5,2276.4,4.39290107]
[1750592749440,10.81516817,2276.5,2276.4,4.39290107]
[1750592750041,20.81518504,2276.5,2276.4,4.39290107]
[1750592750846,20.40334552,2276.5,2276.4,4.39290107]
[1750592751227,20.81519947,2276.5,2276.4,4.39290107]
[1750592751738,20.81519845,2276.5,2276.4,4.39290107]
[1750592752036,20.81519934,2276.5,2276.4,4.39290107]
[1750592752216,20.81519935,2276.5,2276.4,4.39290107]
[1750592752625,20.81519935,2276.5,2276.1,5.17967017]
[1750592752626,10.0,2276.4,2276.1,4.3933584]
[1750592752831,10.0,2276.2,2276.1,4.39348007]
[1750592753030,10.41186164,2276.2,2276.1,4.39348007]
[1750592753434,10.41188227,2276.2,2276.1,4.39348007]
[1750592753655,10.41170072,2276.2,2276.1,4.39348007]
[1750592753835,10.41170004,2276.2,2276.1,4.39348007]
[1750592754031,12.07383846,2276.2,2276.1,4.39348007]
[1750592754233,12.48553846,2276.2,2276.1,4.39348007]
[1750592755424,12.48550637,2276.2,2276.1,4.39348007]
[1750592756919,12.4854153,2276.2,2276.1,4.39348007]
[1750592757960,12.48553319,2276.2,2276.1,4.39348007]
[1750592758456,12.4854666,2276.2,2276.1,4.39348007]
[1750592759159,13.3056666,2276.2,2276.1,4.39348007]
[1750592759358,13.30566905,2276.2,2276.1,4.39348007]
[1750592759861,13.30567559,2276.2,2276.1,4.39348007]
[1750592760349,12.48547559,2276.2,2276.1,4.39348007]
[1750592762058,0.8304,2276.1,2275.5,0.8242]
[1750592762265,0.8304,2276.1,2275.7,4.39423194]
[1750592762266,10.0,2275.9,2275.7,4.39423194]
[1750592762469,17.65138077,2275.8,2275.7,4.39423194]
[1750592762622,17.61863713,2275.8,2275.7,4.39423194]
[1750592762822,10.0,2275.7,2275.0,0.8242]
[1750592763023,16.03674364,2275.6,2275.3,4.39490825]
[1750592763333,2.28975464,2275.5,2275.4,4.39483167]
[1750592763527,0.41175464,2275.5,2275.4,4.39483167]
[1750592763862,9.52951169,2275.5,2275.4,4.39483167]
[1750592764062,12.32941922,2275.5,2275.4,4.39483167]
[1750592764270,12.32844665,2275.5,2275.4,4.39483167]
[1750592764967,12.3284486,2275.5,2275.4,4.39483167]
[1750592765468,12.32844463,2275.5,2275.4,4.39483167]
[1750592765833,12.32844463,2275.5,2275.4,5.14933167]
[1750592765834,2.28879346,2275.5,2275.4,5.14933167]
[1750592766029,0.41073668,2275.5,2275.4,5.19327448]
[1750592766346,7.206,2275.6,2275.5,5.14913854]
[1750592766538,7.61668337,2275.6,2275.5,5.14913854]
[1750592766962,7.61668977,2275.6,2275.5,5.14913854]
[1750592767166,7.61669124,2275.6,2275.5,5.14913854]
[1750592767362,7.61669124,2275.6,2275.5,5.19308051]
[1750592767565,7.206,2275.6,2275.5,5.14913854]
[1750592767758,0.03274364,2276.3,2276.2,4.39328705]
[1750592767955,10.49152585,2276.3,2276.1,4.39339316]
[1750592768158,10.41064443,2276.2,2276.1,4.39339316]
[1750592768542,12.28864443,2276.2,2276.1,4.39339316]
[1750592768741,19.49568586,2276.2,2276.1,4.39339316]
[1750592769059,0.41068586,2276.2,2276.1,4.39339316]
[1750592769382,12.56360903,2276.2,2276.0,4.39358483]
[1750592769558,0.41069732,2276.1,2275.9,4.39374278]
[1750592769749,17.65044096,2276.0,2275.9,4.39374278]
[1750592769949,17.61769732,2276.0,2275.9,4.39374278]
[1750592770269,19.77928467,2276.0,2275.9,4.39374278]
[1750592770471,19.77926222,2276.0,2275.9,4.39374278]
[1750592770958,17.61767487,2276.0,2275.9,5.14924278]
[1750592771149,17.61769163,2276.0,2275.9,5.14924278]
[1750592771685,12.28869163,2276.0,2275.9,5.14924278]
[1750592771881,9.49469163,2276.0,2275.9,5.14924278]
[1750592772084,9.49470079,2276.0,2275.4,4.39483167]
[1750592772384,1.39291359,2275.9,2275.8,4.39394296]
[1750592772680,1.39291359,2275.9,2275.7,4.39418525]
[1750592772882,17.61670079,2275.8,2275.7,4.39418525]
[1750592773184,17.61676275,2275.8,2275.7,4.39418525]
[1750592773384,19.661186,2275.8,2275.6,4.39438428]
[1750592773551,0.44351962,2275.7,2275.6,4.39438428]
[1750592773751,10.44351962,2275.7,2275.6,4.39438428]
[1750592773952,10.41079327,2275.7,2275.6,4.39438428]
[1750592774603,10.41078405,2275.7,2275.6,4.39438428]
[1750592774909,10.41079979,2275.7,2275.6,4.39438428]
[1750592775806,12.471869,2275.7,2275.6,4.39438428]
[1750592776808,12.47187066,2275.7,2275.6,4.39438428]
[1750592777212,12.47187164,2275.7,2275.6,4.39438428]
[1750592777607,12.06106921,2275.7,2275.6,4.39438428]
[1750592777821,12.47187112,2275.7,2275.6,4.39438428]
[1750592777973,10.41080191,2275.7,2275.6,4.39438428]
[1750592778174,10.41086004,2275.7,2275.6,4.39438428]
[1750592778900,10.41085805,2275.7,2275.6,4.39438428]
[1750592779086,10.41085803,2275.7,2275.6,4.39438428]
[1750592779818,10.41085674,2275.7,2275.6,4.39438428]
[1750592779971,12.26748933,2275.7,2275.6,4.39438428]
[1750592780494,12.26748933,2275.7,2275.5,4.39450536]
[1750592780673,17.64860038,2275.6,2275.5,4.39450536]
[1750592780873,17.61585674,2275.6,2275.5,4.39450536]
[1750592781572,17.61601875,2275.6,2275.5,4.39450536]
[1750592781774,19.64567388,2275.6,2275.5,4.39450536]
[1750592782772,19.64567542,2275.6,2275.5,4.39450536]
[1750592782973,19.6456754,2275.6,2275.5,4.39450536]
[1750592784816,19.64562554,2275.6,2275.5,4.39450536]
[1750592786130,19.64558446,2275.6,2275.5,4.39450536]
[1750592786336,19.64557182,2275.6,2275.5,4.39450536]
[1750592787463,19.64562016,2275.6,2275.5,4.39450536]
[1750592788564,19.64569147,2275.6,2275.5,4.39450536]
[1750592789157,19.64573462,2275.6,2275.5,4.39450536]
[1750592789358,19.64573902,2275.6,2275.5,4.39450536]
[1750592789924,19.64574231,2275.6,2275.5,4.39450536]
[1750592790552,19.64574289,2275.6,2275.5,4.39450536]
[1750592790717,10.0,2275.5,2275.4,4.39472839]
[1750592790921,15.25083473,2275.5,2275.4,4.39472839]
[1750592791566,15.25084772,2275.5,2275.4,4.39472839]
[1750592791857,16.00894788,2275.5,2275.2,4.39511406]
[1750592792064,7.64702995,2275.4,2275.1,4.39539884]
[1750592792264,10.0,2275.2,2274.8,4.39599085]
[1750592792422,7.61430304,2275.1,2275.0,4.39560439]
[1750592792766,17.6140679,2275.1,2275.0,4.39560439]
[1750592793363,17.61408592,2275.1,2275.0,4.39560439]
[1750592794060,17.61408788,2275.1,2275.0,4.39560439]
[1750592794237,19.19685599,2275.1,2275.0,4.39560439]
[1750592794535,19.60798402,2275.1,2275.0,4.39560439]
[1750592795361,19.60773651,2275.1,2275.0,4.39560439]
[1750592796364,20.37553651,2275.1,2275.0,4.39560439]
[1750592797238,20.37557565,2275.1,2275.0,4.39560439]
[1750592797658,19.96465599,2275.1,2275.0,4.39560439]
[1750592797864,20.3753673,2275.1,2275.0,4.39560439]
[1750592798581,19.6075673,2275.1,2275.0,4.39560439]
[1750592798950,21.4825673,2275.1,2275.0,5.89560439]
[1750592800285,21.07185599,2275.1,2275.0,5.89560439]
[1750592800473,21.48265182,2275.1,2275.0,5.89560439]
[1750592802001,21.48265182,2275.1,2275.0,1.5]
[1750592802347,21.48265182,2275.1,2275.0,5.89560439]
[1750592802547,21.48270715,2275.1,2275.0,5.89560439]
[1750592803202,21.07185599,2275.1,2275.0,5.89560439]
[1750592803359,21.48270238,2275.1,2275.0,1.5]
[1750592803967,21.48270238,2275.1,2275.0,5.89560439]
[1750592804155,21.48270563,2275.1,2275.0,5.89560439]
[1750592804971,21.48266191,2275.1,2275.0,5.89560439]
[1750592805288,21.4826612,2275.1,2275.0,5.89560439]
[1750592805494,21.48266125,2275.1,2275.0,5.89560439]
[1750592806108,11.99385599,2275.1,2275.0,5.89560439]
[1750592806411,21.48265604,2275.1,2275.0,5.89560439]
[1750592806575,14.28065604,2275.1,2275.0,5.89560439]
[1750592806775,12.40465604,2275.1,2275.0,5.89560439]
[1750592806987,19.078,2275.1,2275.0,5.89560439]
[1750592807291,19.48880144,2275.1,2275.0,6.64810439]
[1750592808013,19.48888667,2275.1,2275.0,6.64810439]
[1750592808415,19.48888667,2275.1,2275.0,5.89560439]
[1750592809112,19.48891104,2275.1,2275.0,5.89560439]
[1750592809479,19.48891104,2275.1,2275.0,6.64810439]
[1750592809480,10.41091104,2275.1,2275.0,6.64810439]
[1750592809679,19.48891104,2275.1,2275.0,6.64810439]
[1750592809919,0.41096724,2275.1,2275.0,6.64810439]
[1750592810100,7.61196724,2275.1,2275.0,6.69205449]
[1750592810414,7.61193481,2275.1,2275.0,6.69205449]
[1750592811281,7.61207216,2275.1,2275.0,6.64810439]
[1750592811476,7.61207688,2275.1,2275.0,6.64810439]
[1750592811904,7.61207798,2275.1,2275.0,6.64810439]
[1750592812103,7.6120764,2275.1,2275.0,6.64810439]
[1750592812605,7.61207357,2275.1,2275.0,6.64810439]
[1750592812981,7.61207697,2275.1,2275.0,6.64810439]
[1750592813290,7.61216335,2275.1,2275.0,6.64810439]
[1750592813826,7.61116335,2275.1,2275.0,6.64810439]
[1750592814780,10.0,2275.4,2275.3,4.39502483]
[1750592814981,20.60636314,2275.4,2275.3,4.39502483]
[1750592815519,20.60636288,2275.4,2275.3,4.39502483]
[1750592817219,20.19522011,2275.4,2275.3,4.39502483]
[1750592817585,20.60642463,2275.4,2275.3,4.39502483]
[1750592817879,20.60642468,2275.4,2275.3,4.39502483]
[1750592819322,20.19522011,2275.4,2275.3,5.16512483]
[1750592819550,20.60664651,2275.4,2275.3,5.16512483]
[1750592820424,20.19522011,2275.4,2275.3,5.16512483]
[1750592820629,20.60664548,2275.4,2275.3,5.16512483]
[1750592821133,20.60664548,2275.4,2275.3,4.39502483]
[1750592822534,20.60655344,2275.4,2275.3,4.39502483]
[1750592822731,20.60655165,2275.4,2275.3,4.39502483]
[1750592823299,20.60654939,2275.4,2275.3,4.39502483]
[1750592824433,20.60659738,2275.4,2275.3,4.39502483]
[1750592824798,20.60659837,2275.4,2275.3,4.39502483]
[1750592825437,21.43529837,2275.4,2275.1,4.39529298]
[1750592825634,2.92499512,2275.3,2275.1,4.39541119]
[1750592825834,17.60837826,2275.2,2275.0,1.5]
[1750592826019,0.41137826,2275.1,2275.0,5.89548682]
[1750592826221,0.41138614,2275.1,2275.0,5.89548682]
[1750592826412,0.44412978,2275.1,2275.0,5.89548682]
[1750592826609,2.45634754,2275.1,2275.0,5.89548682]
[1750592826812,2.45634754,2275.1,2275.0,1.5]
[1750592827025,3.24064754,2275.1,2275.0,1.5]
[1750592827241,3.24064617,2275.1,2275.0,1.5]
[1750592828840,13.24063575,2275.1,2275.0,1.5]
[1750592829136,13.20789705,2275.1,2275.0,1.5]
[1750592829846,13.20786775,2275.1,2275.0,5.89560439]
[1750592830030,13.20786233,2275.1,2275.0,5.89560439]
[1750592830231,13.20786225,2275.1,2275.0,5.89560439]
[1750592830437,13.20786187,2275.1,2275.0,5.89560439]
[1750592831345,13.20789098,2275.1,2275.0,5.89560439]
[1750592831639,13.20789098,2275.1,2275.0,1.5]
[1750592832141,13.20788368,2275.1,2275.0,1.5]
[1750592832943,12.7965003,2275.1,2275.0,1.5]
[1750592833245,13.20788481,2275.1,2275.0,1.5]
[1750592833834,13.20788481,2275.1,2275.0,5.89560439]
[1750592834131,2.28338451,2275.1,2275.0,5.89560439]
[1750592834303,10.0,2275.2,2275.1,4.39541119]
[1750592834639,19.47931826,2275.2,2275.1,4.39541119]
[1750592834840,19.4793229,2275.2,2275.1,4.39541119]
[1750592835139,19.068,2275.2,2275.1,4.39541119]
[1750592835345,19.47931922,2275.2,2275.1,4.39541119]
[1750592836245,2.28331922,2275.2,2275.1,4.39541119]
[1750592836451,9.47931922,2275.2,2275.1,5.19471119]
[1750592836612,9.4793209,2275.2,2275.1,5.19471119]
[1750592837451,9.47928445,2275.2,2275.1,5.19471119]
[1750592837748,9.4792845,2275.2,2275.1,5.19471119]
[1750592838048,9.47928288,2275.2,2275.1,5.19471119]
[1750592839014,9.47928274,2275.2,2275.1,5.19471119]
[1750592839915,9.47919758,2275.2,2275.1,5.19471119]
[1750592840654,9.47920134,2275.2,2275.1,5.19471119]
[1750592841018,9.47921274,2275.2,2275.1,5.19471119]
[1750592841651,9.47921286,2275.2,2275.1,5.19471119]
[1750592841971,9.47921095,2275.2,2275.1,5.19471119]
[1750592842568,9.47920964,2275.2,2275.1,5.19471119]
[1750592843052,9.47920969,2275.2,2275.1,5.19471119]
[1750592843230,9.4791722,2275.2,2275.1,5.19471119]
[1750592843698,9.068,2275.2,2275.1,5.19471119]
[1750592843845,9.47917262,2275.2,2275.1,5.19471119]
[1750592844168,7.60517262,2275.2,2275.1,5.19471119]
[1750592844374,7.194,2275.2,2275.1,5.19471119]
[1750592844539,7.60516687,2275.2,2275.1,5.19471119]
[1750592844943,7.60516942,2275.2,2275.1,5.19471119]
[1750592845277,7.60516942,2275.2,2275.1,5.23866067]
[1750592845476,7.60518098,2275.2,2275.1,5.23866067]
[1750592846553,7.60515791,2275.2,2275.1,5.23866067]
[1750592847061,7.60515791,2275.2,2275.1,5.19471119]
[1750592848174,7.194,2275.2,2275.1,5.19471119]
[1750592848361,0.41117262,2275.2,2275.1,5.19471119]
[1750592848567,10.0,2275.5,2275.4,4.39483167]
[1750592848767,20.86402062,2275.5,2275.4,4.39483167]
[1750592849275,20.45288738,2275.5,2275.4,4.39483167]
[1750592849604,20.86402066,2275.5,2275.4,4.39483167]
[1750592850194,20.86404054,2275.5,2275.4,4.39483167]
[1750592850356,20.86404058,2275.5,2275.4,4.39483167]
[1750592850982,20.45288738,2275.5,2275.4,4.39483167]
[1750592851161,20.86404054,2275.5,2275.4,4.39483167]
[1750592851487,20.8640406,2275.5,2275.4,4.39483167]
[1750592852079,11.8000406,2275.5,2275.4,4.39483167]
[1750592852287,20.86000434,2275.5,2275.4,4.39483167]
[1750592852674,20.8600084,2275.5,2275.4,4.39483167]
[1750592853185,20.44888738,2275.5,2275.4,4.39483167]
[1750592853403,20.86002829,2275.5,2275.4,4.39483167]
[1750592854079,20.85997132,2275.5,2275.4,4.39483167]
[1750592854606,20.85997011,2275.5,2275.4,4.39483167]
[1750592855187,20.85997216,2275.5,2275.4,4.39483167]
[1750592855684,20.85997384,2275.5,2275.4,4.39483167]
[1750592855895,20.85997384,2275.5,2275.3,4.39484643]
[1750592856094,20.44888738,2275.5,2275.4,4.39483167]
[1750592856393,20.8600238,2275.5,2275.4,4.39483167]
[1750592857171,20.86006317,2275.5,2275.4,4.39483167]
[1750592857695,20.86006311,2275.5,2275.4,4.39483167]
[1750592857892,20.44888738,2275.5,2275.4,4.39483167]
[1750592858196,20.86006392,2275.5,2275.4,4.39483167]
[1750592858499,20.86006392,2275.5,2275.0,1.5]
[1750592858701,0.7573,2275.3,2275.0,1.5]
[1750592858994,10.0,2275.1,2275.0,5.89550224]
[1750592859196,10.41117654,2275.1,2275.0,1.5]
[1750592859401,10.41135774,2275.1,2275.0,1.5]
[1750592859728,5.56406893,2275.1,2275.0,0.28125]
[1750592859859,0.7573,2275.0,2274.6,4.39627314]
[1750592860056,10.0,2274.8,2274.5,4.39649807]
[1750592860292,7.63414989,2274.7,2274.5,4.39649807]
[1750592860515,7.98004364,2274.7,2274.5,4.39649807]
[1750592860687,0.411424,2274.6,2274.5,4.39649807]
[1750592860890,12.25057076,2274.6,2274.2,0.01192528]
[1750592861065,10.0,2274.4,2274.3,4.39683069]
[1750592861270,12.279424,2274.4,2274.3,4.39683069]
[1750592861474,0.411424,2274.4,2274.3,4.39683069]
[1750592861866,9.468424,2274.4,2274.3,4.39683069]
[1750592862207,9.46858148,2274.4,2274.3,4.39683069]
[1750592862365,10.41543963,2274.4,2274.3,4.39683069]
[1750592864093,10.41472645,2274.4,2274.3,4.39683069]
[1750592866701,10.83675815,2274.4,2274.3,4.39683069]
[1750592866877,11.24701481,2274.4,2274.3,4.39683069]
[1750592867074,11.24671961,2274.4,2274.3,4.39683069]
[1750592867472,0.8329,2274.3,2274.2,0.01192528]
[1750592867667,12.40027706,2274.3,2274.2,0.01192528]
[1750592867866,12.36753342,2274.3,2274.2,0.01192528]
[1750592869002,11.95757196,2274.3,2274.2,0.01192528]
[1750592869305,11.95757196,2274.3,2273.5,4.3985045]
[1750592869306,0.8329,2274.0,2273.5,4.3985045]
[1750592869472,9.09074364,2273.9,2273.1,4.3992618]
[1750592869674,10.0,2273.8,2273.6,4.398305]
[1750592870007,10.0,2273.6,2273.5,4.39840593]
[1750592870173,2.72227436,2273.6,2273.4,4.39859807]
[1750592870372,17.19,2273.5,2273.4,4.39859807]
[1750592872276,19.059,2273.5,2273.4,4.39859807]
[1750592874198,19.059,2273.5,2273.0,0.8063]
[1750592874389,19.059,2273.5,2273.3,4.39872527]
[1750592874881,19.059,2273.5,2273.4,4.39869798]
[1750592875211,21.04794,2273.5,2273.4,4.39869798]
[1750592876074,10.0,2273.4,2272.8,0.8063]
[1750592876274,7.191,2273.3,2272.9,0.04398778]
[1750592876473,7.191,2273.3,2273.2,4.39908499]
[1750592876674,8.29916836,2273.3,2273.2,4.39908499]
[1750592877489,7.191,2273.3,2273.2,4.39908499]
[1750592878018,17.191,2273.3,2273.2,4.39908499]
[1750592878590,10.0,2273.2,2273.1,4.39917328]
[1750592880077,10.40902746,2273.2,2273.1,4.39917328]
[1750592880281,10.40902746,2273.2,2273.0,4.39932228]
[1750592880609,18.95100275,2273.1,2273.0,4.39932228]
[1750592881234,10.8118,2273.0,2272.4,0.7703]
[1750592881530,10.0,2272.8,2272.7,4.3999413]
[1750592881739,12.44016413,2272.8,2272.5,4.40034614]
[1750592881898,17.191,2272.7,2272.6,4.40015316]
[1750592882097,17.191,2272.7,2272.5,4.40033901]
[1750592882341,10.0,2272.6,2272.3,0.2234876]
[1750592882658,3.73400584,2272.6,2272.5,4.40044004]
[1750592882798,8.0028,2272.6,2272.4,4.40053348]
[1750592883453,18.0028,2272.6,2272.5,4.40044004]
[1750592883597,18.4121011,2272.6,2272.4,4.40053811]
[1750592883794,7.191,2272.6,2272.5,4.40044004]
[1750592884093,2.03105845,2272.8,2272.7,4.4000528]
[1750592884292,0.40926203,2272.8,2272.6,0.7703]
[1750592884549,0.8118,2273.3,2273.1,4.39927851]
[1750592884710,2.2752162,2273.2,2273.0,4.39939974]
[1750592884894,10.84454364,2273.3,2273.2,4.39908499]
[1750592885212,9.46718905,2273.3,2273.2,4.39898313]
[1750592885414,11.00054477,2273.3,2273.2,4.39898313]
[1750592885811,11.00054477,2273.3,2273.0,4.39940776]
[1750592886013,10.40918957,2273.2,2272.9,4.39966078]
[1750592886297,17.60118957,2273.1,2273.0,4.39930903]
[1750592886909,10.40973544,2273.1,2273.0,4.39930903]
[1750592887134,19.46773544,2273.1,2273.0,4.39930903]
[1750592887331,21.2126075,2273.1,2273.0,4.39930903]
[1750592887531,0.40973493,2273.1,2273.0,5.16880903]
[1750592887734,2.61775794,2273.4,2273.3,5.16839147]
[1750592887921,9.80975794,2273.4,2273.3,5.21237422]
[1750592888124,9.80975794,2273.4,2273.3,5.16839147]
[1750592888125,10.21946751,2273.4,2273.3,5.16839147]
[1750592888429,10.21947852,2273.4,2273.3,5.16839147]
[1750592888633,10.21947851,2273.4,2273.3,5.16839147]
[1750592888937,9.80975794,2273.4,2273.3,5.16839147]
[1750592889312,3.02801252,2273.4,2273.3,5.16839147]
[1750592889616,10.22001252,2273.4,2273.3,5.16839147]
[1750592890007,3.02801252,2273.4,2273.3,5.16839147]
[1750592890238,10.21901252,2273.4,2273.3,5.16839147]
[1750592890433,10.21901244,2273.4,2273.3,5.16839147]
[1750592892436,9.80875794,2273.4,2273.3,5.16839147]
[1750592892641,10.21909811,2273.4,2273.3,5.16839147]
[1750592893144,9.80875794,2273.4,2273.3,4.39889147]
[1750592893324,10.21934382,2273.4,2273.3,4.39889147]
[1750592894243,21.4278782,2273.4,2273.3,4.39889147]
[1750592895240,0.7658,2273.3,2272.9,0.8256]
[1750592895430,7.60158588,2273.2,2272.9,0.8256]
[1750592895742,7.191,2273.2,2273.1,4.39927851]
[1750592896044,7.60185116,2273.2,2273.1,4.39927851]
[1750592896221,9.82451894,2273.2,2273.1,4.39927851]
[1750592896420,10.0,2273.1,2273.0,4.3993984]
[1750592896624,10.41091471,2273.1,2273.0,4.3993984]
[1750592896944,10.41118285,2273.1,2273.0,4.3993984]
[1750592897149,10.0,2273.1,2273.0,4.3993984]
[1750592897311,12.42912462,2273.1,2273.0,4.3993984]
[1750592897511,12.42911485,2273.1,2273.0,4.3993984]
[1750592898453,12.42924943,2273.1,2273.0,4.3993984]
[1750592898756,12.42924985,2273.1,2272.9,4.39963197]
[1750592899050,19.4683218,2273.0,2272.8,4.39977343]
[1750592899256,10.0,2273.0,2272.9,4.39966562]
[1750592899543,19.057,2273.0,2272.9,4.39966562]
[1750592899767,19.46831437,2273.0,2272.9,4.39966562]
[1750592901244,19.46823224,2273.0,2272.9,4.39966562]
[1750592901447,12.27721399,2273.0,2272.9,4.39966562]
[1750592901607,19.46721043,2273.0,2272.9,4.39966562]
[1750592902234,10.41121043,2273.0,2272.9,4.39966562]
[1750592902434,19.46821043,2273.0,2272.9,4.39966562]
[1750592903030,10.41121043,2273.0,2272.9,4.39966562]
[1750592903341,19.46818229,2273.0,2272.9,4.39966562]
[1750592904247,19.46820569,2273.0,2272.9,4.39966562]
[1750592904753,19.057,2273.0,2272.9,4.39966562]
[1750592904952,19.46817541,2273.0,2272.9,4.39966562]
[1750592905548,0.41114477,2273.0,2272.9,5.18596562]
[1750592905751,9.46812475,2273.0,2272.9,5.18596562]
[1750592906172,9.46812475,2273.0,2272.9,5.22995653]
[1750592906325,0.41112475,2273.0,2272.9,5.22995653]
[1750592906519,7.19,2273.2,2273.1,5.21797851]
[1750592906727,7.60103838,2273.2,2273.1,5.21797851]
[1750592907039,0.41103838,2273.2,2273.1,5.21797851]
[1750592907245,7.60103838,2273.2,2273.1,5.21797851]
[1750592907856,7.60103838,2273.2,2273.1,5.26196605]
[1750592908023,7.19,2273.2,2273.1,5.26196605]
[1750592908224,7.60103881,2273.2,2273.1,5.26196605]
[1750592908844,7.19,2273.2,2273.1,5.26196605]
[1750592909040,7.19,2273.2,2273.1,5.21797851]
[1750592909245,2.12905754,2273.3,2273.2,4.39908499]
[1750592909446,9.73007834,2273.3,2273.2,4.39908499]
[1750592909956,2.54007834,2273.3,2273.2,4.39908499]
[1750592910258,9.73007834,2273.3,2273.2,4.39908499]
[1750592911747,9.31905754,2273.3,2273.2,4.39908499]
[1750592912261,2.12905754,2273.3,2273.2,5.23976913]
[1750592912627,2.12905754,2273.3,2273.2,5.78976913]
[1750592912839,2.12905754,2273.3,2273.2,5.74578499]
[1750592913557,2.12905754,2273.3,2273.2,6.19340289]
[1750592915957,2.12905754,2273.3,2273.2,5.64340289]
[1750592917030,2.12905754,2273.3,2273.2,6.19340289]
[1750592918983,2.12905754,2273.3,2273.2,16.23738305]
[1750592919290,2.12905754,2273.3,2273.2,23.38140289]
[1750592922878,2.12905754,2273.3,2273.2,24.70303789]
[1750592930795,1.12905754,2273.3,2273.2,24.70303789]
[1750592931095,1.864,2274.1,2274.0,4.39753737]
[1750592932705,4.02525706,2274.1,2274.0,4.39753737]
[1750592933189,3.6149,2274.1,2274.0,4.39753737]
[1750592934005,0.7627,2274.1,2274.0,4.39753737]
[1750592934301,3.03764151,2274.1,2274.0,4.44150585]
[1750592934470,3.03764151,2274.1,2274.0,4.39753737]
[1750592936018,0.41094151,2274.1,2274.0,4.39753737]
[1750592936399,0.7627,2274.6,2274.5,4.39653208]
[1750592936611,3.03760218,2274.6,2274.5,4.39653208]
[1750592936772,10.67,2274.7,2274.6,4.39637738]
[1750592936967,9.21686864,2274.7,2274.6,4.39637738]
[1750592937569,12.1306919,2274.7,2274.6,4.39637738]
[1750592938706,10.0,2274.6,2274.0,4.39750234]
[1750592938891,1.19136864,2274.5,2274.4,4.39676398]
[1750592939096,1.19161601,2274.5,2274.4,4.39676398]
[1750592939403,1.19161626,2274.5,2274.4,4.39676398]
[1750592939590,4.40649021,2274.5,2274.4,4.39676398]
[1750592939804,4.40648985,2274.5,2274.4,4.39676398]
[1750592939994,3.99537395,2274.5,2274.4,4.39676398]
[1750592940211,4.40649036,2274.5,2274.4,4.39676398]
[1750592941308,4.40695295,2274.5,2274.4,4.39676398]
[1750592942009,4.40696031,2274.5,2274.4,4.39676398]
[1750592942811,4.40695989,2274.5,2274.4,4.39676398]
[1750592943010,4.4069589,2274.5,2274.4,4.39676398]
[1750592943210,4.40699814,2274.5,2274.4,4.39676398]
[1750592943878,4.40690141,2274.5,2274.4,4.39676398]
[1750592944077,4.4069014,2274.5,2274.4,4.39676398]
[1750592944415,0.7547,2274.4,2274.2,4.39704337]
[1750592944611,10.0,2274.2,2274.1,4.397344]
[1750592945175,10.41156943,2274.2,2274.1,4.397344]
[1750592945671,10.41156802,2274.2,2274.1,4.397344]
[1750592946298,10.41175415,2274.2,2274.1,4.397344]
[1750592947011,10.41179819,2274.2,2274.1,4.397344]
[1750592947706,10.0,2274.2,2274.1,4.397344]
[1750592947910,10.41180265,2274.2,2274.1,4.397344]
[1750592948208,10.41180257,2274.2,2274.1,4.397344]
[1750592948511,12.57666385,2274.2,2274.1,4.397344]
[1750592948907,12.16486128,2274.2,2274.1,4.397344]
[1750592949112,12.57666556,2274.2,2274.1,4.397344]
[1750592950110,2.27380428,2274.2,2274.1,4.397344]
[1750592950293,9.45580428,2274.2,2274.1,4.397344]
[1750592950486,10.8326,2274.6,2274.5,4.39657067]
[1750592950685,20.28839025,2274.6,2274.5,4.39657067]
[1750592950892,20.28838891,2274.6,2274.5,4.39657067]
[1750592951210,23.66130652,2274.6,2274.5,4.39657067]
[1750592952012,23.66130652,2274.6,2272.8,4.39972248]
[1750592952013,0.8326,2274.1,2272.8,4.39972248]
[1750592952186,0.8326,2273.7,2272.7,5.17332519]
[1750592952395,0.8326,2273.4,2273.1,4.3992773]
[1750592952720,10.0,2273.2,2273.1,4.3992773]
[1750592952878,10.41109123,2273.2,2273.1,4.3992773]
[1750592953217,10.41109946,2273.2,2273.1,4.3992773]
[1750592953378,10.41109954,2273.2,2273.1,4.3992773]
[1750592954737,10.41109185,2273.2,2273.1,4.3992773]
[1750592954892,10.41109499,2273.2,2273.1,4.3992773]
[1750592955915,10.0,2273.2,2273.1,4.3992773]
[1750592957226,1.862,2273.4,2273.3,4.39889147]
[1750592957539,19.45436911,2273.4,2273.3,4.39889147]
[1750592957905,19.044,2273.4,2273.3,4.39889147]
[1750592958605,9.044,2273.4,2273.3,4.39889147]
[1750592958800,0.769,2273.9,2273.8,4.39792417]
[1750592959001,11.17914125,2273.9,2273.8,4.39792417]
[1750592959199,20.22414545,2273.9,2273.8,4.39792417]
[1750592960337,12.24656621,2273.9,2273.7,4.39803491]
[1750592960507,11.83641455,2273.9,2273.8,4.39792417]
[1750592960707,10.22414791,2273.9,2273.8,4.39792417]
[1750592962011,10.22410298,2273.9,2273.8,4.39792417]
[1750592962319,10.22410433,2273.9,2273.7,4.39801536]
[1750592962520,0.41010748,2273.8,2273.7,4.39801536]
[1750592963047,19.814,2273.9,2273.8,4.39792417]
[1750592963227,20.22397126,2273.9,2273.8,4.39792417]
[1750592963545,20.22396893,2273.9,2273.8,4.39792417]
[1750592964243,20.22396906,2273.9,2273.8,4.39792417]
[1750592964449,20.22397089,2273.9,2273.8,4.39792417]
[1750592965142,20.22408569,2273.9,2273.8,4.39792417]
[1750592965552,20.22407835,2273.9,2273.8,4.39792417]
[1750592966550,20.22400283,2273.9,2273.8,4.39792417]
[1750592967755,22.24640311,2273.9,2273.8,4.39792417]
[1750592967957,22.24654126,2273.9,2273.8,4.39792417]
[1750592968247,22.24680899,2273.9,2273.8,4.39792417]
[1750592970055,22.24693062,2273.9,2273.8,4.39792417]
[1750592970353,22.2469273,2273.9,2273.8,4.39792417]
[1750592970757,22.24693369,2273.9,2273.8,4.39792417]
[1750592971052,21.83640028,2273.9,2273.8,4.39792417]
[1750592971259,22.24693198,2273.9,2273.8,4.39792417]
[1750592971755,22.24693218,2273.9,2273.8,4.39792417]
[1750592971961,22.24693223,2273.9,2273.8,4.39792417]
[1750592972162,22.24693056,2273.9,2273.8,4.39792417]
[1750592973152,13.20193056,2273.9,2273.8,4.39792417]
[1750592973358,0.41053028,2273.9,2273.8,5.19542417]
[1750592973670,7.59159151,2273.9,2273.8,4.39792417]
[1750592973850,7.181,2273.9,2273.8,4.39792417]
[1750592974158,7.59201107,2273.9,2273.8,4.39792417]
[1750592974356,10.0,2273.8,2272.8,0.7975]
[1750592974555,1.02382111,2273.9,2273.7,4.3981166]
[1750592974795,7.62480114,2273.8,2273.7,4.3981166]